bitfinex/quotes_ETHUSD_20230113
["timestamp","ask_amount","ask_price","bid_price","bid_amount"]
[1673582846680,0.44845549,1414.4,1414.3,31.94692385]
[1673582847739,0.44845549,1414.4,1414.3,31.94385154]
[1673582852043,0.44845549,1414.4,1414.3,29.44385154]
[1673582856200,0.44845549,1414.4,1414.3,28.550905]
[1673582856349,0.44845549,1414.4,1414.3,29.44385154]
[1673582857035,0.44845549,1414.4,1414.3,28.550905]
[1673582857251,0.44845549,1414.4,1414.3,29.44385154]
[1673582857415,0.44845549,1414.4,1414.3,31.01489339]
[1673582858457,0.44845549,1414.4,1414.3,29.44385154]
[1673582858864,0.44845549,1414.4,1414.3,31.01489339]
[1673582859510,0.44845549,1414.4,1414.3,29.63435049]
[1673582859771,0.44845549,1414.4,1414.3,28.74140395]
[1673582860554,0.44845549,1414.4,1414.3,27.1703621]
[1673582861088,0.44845549,1414.4,1414.3,28.06330864]
[1673582861298,0.44845549,1414.4,1414.3,27.1703621]
[1673582864236,0.44845549,1414.4,1414.3,13.00746668]
[1673582864449,0.44845549,1414.4,1414.3,4.44683668]
[1673582864699,0.44845549,1414.4,1414.3,3.33196514]
[1673582870484,0.23702683,1414.4,1414.3,3.33196514]
[1673582873476,1.29576019,1414.4,1414.3,3.33196514]
[1673582874008,0.23702683,1414.4,1414.3,3.33196514]
[1673582875997,0.46702683,1414.4,1414.3,3.33196514]
[1673582877772,2.94357807,1414.4,1414.3,3.0]
[1673582877889,4.8475255,1414.4,1414.3,3.0]
[1673582878569,4.8475255,1414.4,1414.2,4.11487154]
[1673582878731,3.42970762,1414.4,1414.2,3.0]
[1673582879150,3.42970762,1414.4,1414.2,4.04887154]
[1673582879582,3.42970762,1414.4,1414.2,3.0]
[1673582879794,3.42970762,1414.4,1414.2,3.002]
[1673582880038,3.42970762,1414.4,1414.2,3.0]
[1673582881301,1.52576019,1414.4,1414.2,3.0]
[1673582883912,1.52576019,1414.4,1414.2,10.07113]
[1673582884121,1.52576019,1414.4,1414.2,10.13713]
[1673582884555,1.52576019,1414.4,1414.2,3.066]
[1673582884762,0.23,1414.3,1414.2,3.0]
[1673582885095,12.42908712,1414.3,1414.1,3.10146483]
[1673582885246,12.42908712,1414.3,1414.1,0.03546483]
[1673582885247,10.01920602,1414.3,1414.1,0.03546483]
[1673582885456,11.07793938,1414.3,1414.1,0.03546483]
[1673582885665,8.57793938,1414.3,1414.1,0.03546483]
[1673582885871,7.51920602,1414.3,1414.1,0.03546483]
[1673582886670,8.57793938,1414.3,1414.1,3.03546483]
[1673582887145,7.51920602,1414.3,1414.1,3.03546483]
[1673582888128,0.7519206,1414.2,1414.1,3.03546483]
[1673582888304,0.23,1414.2,1414.1,3.36840528]
[1673582889168,0.23,1414.2,1414.1,3.03546483]
[1673582892642,0.23,1414.2,1414.1,0.03546483]
[1673582893015,0.22611563,1414.2,1414.1,0.03546483]
[1673582894771,14.36837563,1414.2,1414.1,0.03546483]
[1673582894982,17.56340813,1414.2,1414.1,0.03546483]
[1673582895308,28.24087085,1414.2,1414.1,0.03546483]
[1673582900405,33.70743327,1414.2,1414.1,0.03546483]
[1673582900940,55.64103327,1414.2,1414.1,0.03546483]
[1673582901516,57.3592179,1414.2,1414.1,0.03546483]
[1673582901894,55.64103327,1414.2,1414.1,0.03546483]
[1673582904300,54.22520421,1414.2,1414.1,0.03546483]
[1673582905034,55.64069298,1414.2,1414.1,0.03546483]
[1673582905718,57.35838382,1414.2,1414.1,0.03546483]
[1673582905874,65.67618877,1414.2,1414.1,0.03546483]
[1673582906097,67.529411,1414.2,1414.1,0.03546483]
[1673582906318,67.529411,1414.2,1414.1,6.483e-05]
[1673582906319,68.23818022,1414.2,1414.1,6.483e-05]
[1673582906551,23.71489,1414.1,1414.0,0.03546483]
[1673582906743,46.67535703,1414.1,1414.0,0.03546483]
[1673582906962,47.38412625,1414.1,1414.0,0.03546483]
[1673582907606,47.38412625,1414.1,1413.9,0.04497365]
[1673582907607,2.5,1414.0,1413.9,0.04497365]
[1673582907819,35.77451072,1414.0,1413.9,0.04497365]
[1673582908069,52.31050531,1414.0,1413.9,0.04497365]
[1673582908222,53.01927453,1414.0,1413.9,0.04497365]
[1673582908877,54.43395182,1414.0,1413.9,0.04497365]
[1673582909595,50.26817405,1414.0,1413.9,0.04497365]
[1673582909803,47.08671731,1414.0,1413.9,0.04497365]
[1673582910041,57.16501731,1414.0,1413.9,0.04497365]
[1673582910589,61.33093605,1414.0,1413.9,0.04497365]
[1673582910780,57.16501731,1414.0,1413.9,0.04497365]
[1673582910967,61.33093605,1414.0,1413.9,0.04497365]
[1673582911325,54.66501731,1414.0,1413.9,0.04497365]
[1673582914896,53.17001731,1414.0,1413.9,0.04497365]
[1673582915706,51.66701731,1414.0,1413.9,0.04497365]
[1673582916128,33.68642459,1414.0,1413.9,0.04497365]
[1673582916372,40.75855459,1414.0,1413.9,0.04497365]
[1673582917740,40.98855459,1414.0,1413.9,0.04497365]
[1673582918894,51.66701731,1414.0,1413.9,0.04497365]
[1673582922504,51.95924775,1414.0,1413.9,0.04497365]
[1673582927608,21.39473044,1414.0,1413.9,0.04497365]
[1673582927840,11.31643044,1414.0,1413.9,0.04497365]
[1673582928043,0.35823044,1414.0,1413.9,1.54797365]
[1673582928294,0.29223044,1414.0,1413.9,1.87937444]
[1673582928494,0.29223044,1414.0,1413.9,4.37937444]
[1673582928839,0.29223044,1414.0,1413.9,11.45200444]
[1673582929037,0.29223044,1414.0,1413.9,14.51800444]
[1673582929888,0.29223044,1414.0,1413.9,15.56687598]
[1673582930039,0.29223044,1414.0,1413.9,12.01800444]
[1673582930566,0.29223044,1414.0,1413.9,4.94537444]
[1673582930769,0.29223044,1414.0,1413.9,4.87937444]
[1673582932093,0.28862458,1414.0,1413.9,7.37937444]
[1673582932250,0.28862458,1414.0,1413.9,4.94537444]
[1673582932459,0.28862458,1414.0,1413.9,4.87937444]
[1673582935510,0.28862458,1414.0,1413.9,20.07350598]
[1673582935758,0.28862458,1414.0,1413.9,20.13950598]
[1673582935933,0.28862458,1414.0,1413.9,27.21213598]
[1673582938831,0.28862458,1414.0,1413.9,28.10508252]
[1673582939137,0.28862458,1414.0,1413.9,27.21213598]
[1673582939667,0.28862458,1414.0,1413.9,28.70413598]
[1673582939832,0.28862458,1414.0,1413.9,29.59708252]
[1673582944500,0.28862458,1414.0,1413.9,28.54821098]
[1673582945340,0.28862458,1414.0,1413.9,29.59708252]
[1673582947382,0.28862458,1414.0,1413.9,28.70413598]
[1673582947754,0.28862458,1414.0,1413.9,29.59708252]
[1673582948578,0.28862458,1414.0,1413.9,34.32563901]
[1673582948579,0.08939189,1414.0,1413.9,34.32563901]
[1673582948904,0.08939189,1414.0,1413.9,35.21858555]
[1673582949075,0.08939189,1414.0,1413.9,37.31330802]
[1673582949861,0.08939189,1414.0,1413.9,35.81030802]
[1673582950225,0.08939189,1414.0,1413.9,34.23926617]
[1673582950470,0.01873857,1414.0,1413.9,34.23926617]
[1673582955903,0.01873857,1414.0,1413.9,36.85766925]
[1673582956113,0.01873857,1414.0,1413.9,38.36066925]
[1673582956327,0.01873857,1414.0,1413.9,36.26594678]
[1673582956559,0.01873857,1414.0,1413.9,39.58780079]
[1673582957003,0.00073857,1414.0,1413.9,43.49911801]
[1673582957221,10.2874,1414.6,1414.1,2.5]
[1673582957538,10.2874,1414.6,1414.5,8.56563]
[1673582957853,0.066,1414.6,1414.5,8.63163]
[1673582958020,19.3750503,1414.8,1414.5,8.63163]
[1673582958021,30.0541503,1414.8,1414.5,8.63163]
[1673582958236,0.23,1414.7,1414.5,8.63163]
[1673582958563,0.23,1414.7,1414.5,15.70126]
[1673582959945,0.23,1414.7,1414.5,22.77089]
[1673582962659,10.81704104,1414.8,1414.5,22.77089]
[1673582963273,0.23,1414.7,1414.5,22.77089]
[1673582966775,10.81704104,1414.8,1414.6,3.006]
[1673582967086,0.20394104,1414.8,1414.7,15.62726]
[1673582967251,0.20394104,1414.8,1414.7,15.69326]
[1673582967252,0.36794104,1414.8,1414.7,15.69326]
[1673582967463,0.36794104,1414.8,1414.7,22.76189]
[1673582968768,0.13794104,1414.8,1414.7,22.76189]
[1673582969593,0.13794104,1414.8,1414.7,15.69326]
[1673582970035,0.13794104,1414.8,1414.7,0.066]
[1673582970036,0.36794104,1414.8,1414.7,0.066]
[1673582970201,0.36794104,1414.8,1414.6,7.13492]
[1673582970426,0.23,1414.7,1414.6,14.20388]
[1673582970660,0.23,1414.7,1414.6,17.20388]
[1673582971500,0.23,1414.7,1414.6,10.13492]
[1673582971719,0.23,1414.7,1414.6,3.066]
[1673582971947,0.23,1414.7,1414.6,3.0]
[1673582972688,0.23,1414.7,1414.5,7.13541]
[1673582973476,0.23,1414.7,1414.5,0.066]
[1673582973745,1.9370481,1414.7,1414.5,3.0]
[1673582975420,9.0056881,1414.7,1414.5,3.0]
[1673582975578,9.0716881,1414.7,1414.5,3.0]
[1673582978474,9.0716881,1414.7,1414.5,2.99655324]
[1673582979199,16.1403281,1414.7,1414.5,2.99655324]
[1673582979515,1.61403281,1414.6,1414.5,2.99655324]
[1673582979674,1.84403281,1414.6,1414.5,2.99655324]
[1673582980103,1.84403281,1414.6,1414.4,0.066]
[1673582980338,2.73,1414.5,1414.4,3.0]
[1673582980561,9.79963,1414.5,1414.3,3.066]
[1673582980781,9.33355928,1414.5,1414.3,3.0]
[1673582982245,11.83355928,1414.5,1414.3,3.0]
[1673582982421,11.83355928,1414.5,1414.2,5.5458]
[1673582982979,11.83355928,1414.5,1414.2,0.066]
[1673582983201,9.33355928,1414.5,1414.2,3.0]
[1673582984309,9.33355928,1414.5,1414.2,3.89076338]
[1673582985392,9.33355928,1414.5,1414.3,0.31950412]
[1673582985575,9.33355928,1414.5,1414.2,3.95676338]
[1673582985883,9.33355928,1414.5,1414.2,3.89076338]
[1673582986499,9.33355928,1414.5,1414.3,0.31990938]
[1673582987976,11.83355928,1414.5,1414.2,3.95676338]
[1673582988187,25.97281928,1414.5,1414.2,3.89076338]
[1673582988452,1.18335593,1414.4,1414.2,3.0]
[1673582988603,0.23,1414.3,1414.2,3.0]
[1673582988814,0.23,1414.3,1414.2,0.32002694]
[1673582996967,3.58495859,1414.3,1414.1,3.066]
[1673582997112,10.65558859,1414.3,1414.1,3.0]
[1673582997319,8.22158859,1414.3,1414.1,3.0]
[1673583000281,8.21768896,1414.3,1414.1,3.0]
[1673583005224,7.36273037,1414.3,1414.1,3.0]
[1673583007680,0.29210037,1414.3,1414.2,0.31949458]
[1673583007893,0.22610037,1414.3,1414.2,2.81949458]
[1673583008412,0.22610037,1414.3,1414.2,0.31949458]
[1673583012807,0.22610037,1414.3,1414.2,8.43985437]
[1673583012985,0.22610037,1414.3,1414.2,8.50585437]
[1673583013195,0.22610037,1414.3,1414.2,15.57698437]
[1673583015719,0.22610037,1414.3,1414.2,14.52775458]
[1673583015968,0.22610037,1414.3,1414.2,15.57698437]
[1673583017445,0.22610037,1414.3,1414.2,8.50585437]
[1673583022266,0.22610037,1414.3,1414.2,1.43472437]
[1673583022477,0.22610037,1414.3,1414.2,1.36872437]
[1673583025387,2.75124596,1414.3,1414.2,0.31949458]
[1673583030666,2.75124596,1414.3,1414.1,4.05122979]
[1673583030875,2.75124596,1414.3,1414.1,4.04922979]
[1673583031136,2.75124596,1414.3,1414.2,0.32009151]
[1673583032280,2.75124596,1414.3,1414.1,1.04922979]
[1673583032608,2.75124596,1414.3,1414.1,1.369332]
[1673583033395,0.3982168,1414.2,1414.1,1.369332]
[1673583033622,0.6282168,1414.2,1414.1,0.32010221]
[1673583034235,0.6282168,1414.2,1414.1,1.369332]
[1673583034553,0.6282168,1414.2,1414.1,0.32010221]
[1673583036667,4.30252241,1414.2,1414.1,0.32010221]
[1673583039383,2.5,1414.1,1413.9,1.16020344]
[1673583039593,2.5,1414.1,1414.0,0.31053811]
[1673583039838,16.87326,1414.1,1414.0,0.31053811]
[1673583040046,16.93926,1414.1,1414.0,0.31053811]
[1673583040368,19.85306251,1414.1,1414.0,0.31053811]
[1673583040956,19.85306251,1414.1,1413.9,0.04497365]
[1673583041305,8.70913,1414.0,1413.9,1.09420344]
[1673583041521,8.77513,1414.0,1413.9,1.09420344]
[1673583041732,0.296,1414.0,1413.9,1.40472265]
[1673583041943,0.296,1414.0,1413.9,15.54998265]
[1673583041944,0.23,1414.0,1413.9,15.54998265]
[1673583042153,0.23,1414.1,1413.9,8.54335265]
[1673583042395,0.23,1414.1,1414.0,0.31051921]
[1673583043859,11.29168503,1414.1,1413.9,0.11097365]
[1673583044194,29.10727775,1414.1,1413.9,0.04497365]
[1673583045759,2.5,1414.0,1413.9,0.04497365]
[1673583046098,16.87426,1414.0,1413.9,0.04497365]
[1673583046264,16.94026,1414.0,1413.9,0.04497365]
[1673583046466,21.13012777,1414.0,1413.9,0.04497365]
[1673583047295,31.80859049,1414.0,1413.9,0.04497365]
[1673583047447,33.30259049,1414.0,1413.9,0.04497365]
[1673583048614,44.49409049,1414.0,1413.9,0.04497365]
[1673583049456,45.99809049,1414.0,1413.9,0.04497365]
[1673583056450,46.39850177,1414.0,1413.9,0.04497365]
[1673583060996,18.40285018,1413.9,1413.5,1.17510228]
[1673583061200,18.40285018,1413.9,1413.4,2.16781348]
[1673583061201,2.5,1413.6,1413.4,0.06935389]
[1673583061434,11.16096272,1413.5,1413.4,0.06935389]
[1673583061753,11.22696272,1413.5,1413.4,0.06935389]
[1673583062442,19.01036194,1413.5,1413.4,0.06935389]
[1673583063429,26.08499194,1413.5,1413.4,0.06935389]
[1673583063646,36.47809194,1413.5,1413.4,0.06935389]
[1673583064260,35.76932272,1413.5,1413.4,0.06935389]
[1673583065685,28.69469272,1413.5,1413.4,0.06935389]
[1673583065902,21.62006272,1413.5,1413.4,0.06935389]
[1673583066323,28.69469272,1413.5,1413.4,0.06935389]
[1673583066797,10.6891,1413.5,1413.4,0.06935389]
[1673583066969,0.066,1413.5,1413.4,0.06935389]
[1673583067313,12.1525,1413.6,1413.4,0.06935389]
[1673583067936,19.22669,1413.6,1413.4,0.06935389]
[1673583068865,0.23,1413.5,1413.4,0.06935389]
[1673583072115,7.30463,1413.5,1413.4,0.06935389]
[1673583072309,17.098359,1413.5,1413.4,0.06935389]
[1673583072975,27.77932172,1413.5,1413.4,0.06935389]
[1673583077937,37.78742172,1413.5,1413.4,0.06935389]
[1673583087061,38.98642172,1413.5,1413.4,0.06935389]
[1673583087283,38.98642172,1413.5,1413.4,0.06601737]
[1673583089347,2.5,1413.4,1413.3,0.06446596]
[1673583089704,33.62236489,1413.4,1413.3,0.06446596]
[1673583089880,33.68836489,1413.4,1413.3,0.06446596]
[1673583091381,33.91836489,1413.4,1413.3,0.06446596]
[1673583094116,34.97541421,1413.4,1413.3,0.06446596]
[1673583094723,36.6333161,1413.4,1413.3,0.06446596]
[1673583094935,34.97541421,1413.4,1413.3,0.06446596]
[1673583095253,36.63291894,1413.4,1413.3,0.06446596]
[1673583095467,34.97541421,1413.4,1413.3,0.06446596]
[1673583095693,44.88696489,1413.4,1413.3,0.06446596]
[1673583096296,41.18796489,1413.4,1413.3,0.06446596]
[1673583100276,39.99496489,1413.4,1413.3,0.06446596]
[1673583105464,36.09632272,1413.4,1413.3,0.06446596]
[1673583105631,14.64093272,1413.4,1413.3,0.06446596]
[1673583107055,14.87093272,1413.4,1413.3,0.06446596]
[1673583107361,0.064,1413.4,1413.3,1.26346596]
[1673583107524,7.14065,1413.5,1413.3,1.26346596]
[1673583107737,10.74698272,1413.5,1413.3,1.26346596]
[1673583108637,0.23,1413.4,1413.3,1.26346596]
[1673583109417,0.23,1413.4,1413.3,0.06446596]
[1673583109940,7.30513,1413.4,1413.3,0.06446596]
[1673583110148,7.37113,1413.4,1413.3,0.06446596]
[1673583111249,13.49016699,1413.4,1413.3,0.06446596]
[1673583111489,13.49016699,1413.4,1413.3,0.06190165]
[1673583111490,29.30042492,1413.4,1413.3,0.06190165]
[1673583111780,31.94304822,1413.4,1413.3,0.06190165]
[1673583111987,33.84384399,1413.4,1413.3,0.06190165]
[1673583112883,44.18154399,1413.4,1413.3,0.06190165]
[1673583115966,55.37634399,1413.4,1413.3,0.06190165]
[1673583117871,54.31929467,1413.4,1413.3,0.06190165]
[1673583120476,32.03039023,1413.4,1413.3,0.06190165]
[1673583120691,27.61689019,1413.4,1413.3,0.06190165]
[1673583121433,24.89772272,1413.4,1413.3,0.06190165]
[1673583121809,26.18689226,1413.4,1413.3,0.06190165]
[1673583123162,27.90963057,1413.4,1413.3,0.06190165]
[1673583123534,26.18689226,1413.4,1413.3,0.06190165]
[1673583123908,29.86647761,1413.4,1413.3,0.06190165]
[1673583124284,28.80730807,1413.4,1413.3,0.06190165]
[1673583124483,31.58921745,1413.4,1413.3,0.06190165]
[1673583125125,29.86647761,1413.4,1413.3,0.06190165]
[1673583125355,26.18689226,1413.4,1413.3,0.06190165]
[1673583125572,25.12772272,1413.4,1413.3,0.06190165]
[1673583125773,26.18689226,1413.4,1413.3,0.06190165]
[1673583126114,25.12772272,1413.4,1413.3,0.06190165]
[1673583127361,25.12772272,1413.4,1413.3,0.14965689]
[1673583127680,25.12772272,1413.4,1413.3,0.1496568]
[1673583128739,31.23615796,1413.4,1413.3,0.06190165]
[1673583128925,31.23614339,1413.4,1413.3,0.06190165]
[1673583129147,32.82171737,1413.4,1413.3,0.06190165]
[1673583129344,31.76254783,1413.4,1413.3,0.06190165]
[1673583129553,33.71197877,1413.4,1413.3,0.06190165]
[1673583129763,34.7715985,1413.4,1413.3,0.06190165]
[1673583130499,43.17392452,1413.4,1413.3,0.06190165]
[1673583130926,31.36664695,1413.4,1413.3,0.06190165]
[1673583131135,28.04049272,1413.4,1413.3,0.06190165]
[1673583131376,20.73536272,1413.4,1413.3,0.06190165]
[1673583131556,13.66023272,1413.4,1413.3,0.06190165]
[1673583132849,13.89023272,1413.4,1413.3,0.06190165]
[1673583133057,13.89023272,1413.4,1413.3,0.05723665]
[1673583135686,0.296,1413.4,1413.3,0.05723665]
[1673583135901,0.23,1413.4,1413.3,0.05723665]
[1673583137363,0.23,1413.4,1413.3,0.14499156]
[1673583143889,0.23,1413.4,1413.3,0.05723665]
[1673583144347,0.23,1413.4,1413.3,0.14499125]
[1673583148550,0.23,1413.4,1413.3,1.10588329]
[1673583150768,0.23,1413.4,1413.3,0.14499125]
[1673583151612,0.23,1413.4,1413.3,0.05723665]
[1673583153152,10.91146272,1413.4,1413.3,0.05723665]
[1673583153364,25.12772272,1413.4,1413.3,0.05723665]
[1673583155478,18.05259272,1413.4,1413.3,0.05723665]
[1673583156745,18.05259272,1413.4,1413.3,0.14499214]
[1673583156993,10.97746272,1413.4,1413.3,0.14499214]
[1673583157310,10.97412084,1413.4,1413.3,0.14499214]
[1673583160834,3.89899084,1413.4,1413.3,0.14499214]
[1673583161045,0.22665812,1413.4,1413.3,0.14499214]
[1673583161247,0.22665812,1413.4,1413.3,10.45058282]
[1673583161459,29.62978,1413.6,1413.3,12.09042751]
[1673583161776,0.066,1413.6,1413.5,1.495]
[1673583162053,14.59971347,1413.8,1413.5,2.41670762]
[1673583162348,12.64989371,1413.8,1413.7,1.506]
[1673583162562,2.84917064,1413.8,1413.7,1.506]
[1673583162771,2.78317064,1413.8,1413.7,1.506]
[1673583163583,1.05961973,1413.8,1413.7,1.506]
[1673583164872,1.28961973,1413.8,1413.7,1.506]
[1673583165453,3.01167594,1413.8,1413.7,1.506]
[1673583165699,6.61800866,1413.8,1413.7,1.506]
[1673583165909,24.4932809,1413.8,1413.5,1.572]
[1673583166116,0.23,1413.7,1413.5,4.506]
[1673583166339,16.87758,1413.7,1413.5,4.506]
[1673583166550,21.43274918,1413.7,1413.5,4.506]
[1673583167559,20.37312945,1413.7,1413.5,4.506]
[1673583167964,32.1130119,1413.7,1413.5,3.0]
[1673583168113,32.1130119,1413.7,1413.4,4.568]
[1673583168297,32.1130119,1413.7,1413.4,4.502]
[1673583169360,3.21130119,1413.6,1413.4,4.502]
[1673583169663,0.23,1413.5,1413.4,4.502]
[1673583169995,0.23,1413.5,1413.4,1.502]
[1673583171349,10.91096272,1413.5,1413.3,3.12323665]
[1673583171564,25.12622272,1413.5,1413.3,4.55423665]
[1673583171756,5.01262227,1413.4,1413.3,1.55423665]
[1673583172107,9.88375227,1413.4,1413.3,1.64198885]
[1673583172297,7.37113,1413.4,1413.3,1.64198885]
[1673583172512,10.97746272,1413.4,1413.3,1.64198885]
[1673583172731,25.12772272,1413.4,1413.3,0.14498885]
[1673583173058,25.12772272,1413.4,1413.3,0.14499164]
[1673583173769,25.12772272,1413.4,1413.3,0.144992]
[1673583174082,28.34795799,1413.4,1413.3,0.05723665]
[1673583176185,0.066,1413.4,1413.3,1.63998888]
[1673583176382,37.48935973,1413.6,1413.3,2.68921867]
[1673583176713,41.09569245,1413.6,1413.3,1.55223665]
[1673583177342,41.09569245,1413.6,1413.3,2.60146644]
[1673583177961,0.23,1413.5,1413.3,2.60146644]
[1673583178638,0.23,1413.5,1413.3,1.55223665]
[1673583179638,3.60633272,1413.4,1413.3,1.55223665]
[1673583179846,3.60633272,1413.4,1413.3,1.63998962]
[1673583179847,3.83633272,1413.4,1413.3,1.63998962]
[1673583180062,10.91146272,1413.4,1413.3,1.63998962]
[1673583180329,10.97746272,1413.4,1413.3,1.63998962]
[1673583180550,10.97746272,1413.4,1413.3,0.14498962]
[1673583180860,19.33507732,1413.4,1413.3,0.14498962]
[1673583181917,27.46982705,1413.4,1413.3,0.05723665]
[1673583182070,29.1834648,1413.4,1413.3,0.05723665]
[1673583184501,29.1834648,1413.4,1413.3,0.05354732]
[1673583184502,30.76844362,1413.4,1413.3,0.05354732]
[1673583184712,40.98374362,1413.4,1413.3,0.05354732]
[1673583184956,42.92554382,1413.4,1413.3,0.05354732]
[1673583185180,41.33996984,1413.4,1413.3,0.05354732]
[1673583186798,39.39816964,1413.4,1413.3,0.05354732]
[1673583188787,37.68453189,1413.4,1413.3,0.05354732]
[1673583189001,36.62550732,1413.4,1413.3,0.05354732]
[1673583189465,36.62197418,1413.4,1413.3,0.05354732]
[1673583190069,29.54684418,1413.4,1413.3,0.05354732]
[1673583190284,29.31684418,1413.4,1413.3,0.05354732]
[1673583190559,36.39197418,1413.4,1413.3,0.05354732]
[1673583190743,29.31684418,1413.4,1413.3,0.05354732]
[1673583191071,28.03435958,1413.4,1413.3,0.05354732]
[1673583191858,28.26435958,1413.4,1413.3,0.05354732]
[1673583194493,21.18922958,1413.4,1413.3,0.05354732]
[1673583195878,17.58643,1413.4,1413.3,0.05354732]
[1673583199217,21.19276272,1413.4,1413.3,0.05354732]
[1673583199436,31.90804345,1413.4,1413.3,0.05354732]
[1673583200480,38.98317345,1413.4,1413.3,0.05354732]
[1673583200687,41.75410094,1413.4,1413.3,0.05354732]
[1673583200961,38.98317345,1413.4,1413.3,0.05354732]
[1673583201111,40.04219802,1413.4,1413.3,0.05354732]
[1673583201339,38.98317345,1413.4,1413.3,0.05354732]
[1673583203420,41.75470271,1413.4,1413.3,0.05354732]
[1673583203740,40.04219802,1413.4,1413.3,0.05354732]
[1673583205460,41.75554196,1413.4,1413.3,0.05354732]
[1673583205735,43.69716564,1413.4,1413.3,0.05354732]
[1673583206743,36.39203564,1413.4,1413.3,0.05354732]
[1673583206906,34.45041196,1413.4,1413.3,0.05354732]
[1673583207108,41.52554196,1413.4,1413.3,0.05354732]
[1673583207373,43.46764112,1413.4,1413.3,0.05354732]
[1673583208200,43.69764112,1413.4,1413.3,0.05354732]
[1673583208619,43.98508118,1413.4,1413.3,0.05354732]
[1673583209213,45.57065516,1413.4,1413.3,0.05354732]
[1673583210484,43.98508118,1413.4,1413.3,0.05354732]
[1673583211208,40.34493045,1413.4,1413.3,0.05354732]
[1673583211428,22.53922735,1413.4,1413.3,0.05354732]
[1673583211750,21.48020278,1413.4,1413.3,0.05354732]
[1673583214611,14.40507278,1413.4,1413.3,0.05354732]
[1673583217560,14.40507278,1413.4,1413.3,0.14130366]
[1673583218090,21.48020278,1413.4,1413.3,0.14130366]
[1673583218400,21.48020278,1413.4,1413.3,0.14130406]
[1673583218623,21.48020278,1413.4,1413.3,0.05354732]
[1673583219513,32.38277091,1413.4,1413.3,0.05354732]
[1673583219972,33.44179548,1413.4,1413.3,0.05354732]
[1673583221718,29.61435735,1413.4,1413.3,0.05354732]
[1673583222306,28.55533278,1413.4,1413.3,0.05354732]
[1673583222826,33.27305749,1413.4,1413.3,0.05354732]
[1673583223038,41.93376147,1413.4,1413.3,0.05354732]
[1673583224921,40.8747369,1413.4,1413.3,0.05354732]
[1673583225132,46.14674347,1413.4,1413.3,0.05354732]
[1673583225581,46.14674347,1413.4,1413.3,0.05029494]
[1673583227646,48.26635637,1413.4,1413.3,0.05029494]
[1673583229168,24.92135347,1413.4,1413.3,0.05029494]
[1673583229403,19.82533042,1413.4,1413.3,0.05029494]
[1673583229610,38.93110752,1413.4,1413.3,0.05029494]
[1673583229903,40.8747369,1413.4,1413.3,0.05029494]
[1673583231326,41.93470232,1413.4,1413.3,0.05029494]
[1673583231650,40.8747369,1413.4,1413.3,0.05029494]
[1673583231862,47.32663104,1413.4,1413.3,0.05029494]
[1673583232063,26.19885249,1413.4,1413.3,0.05029494]
[1673583233689,33.27398249,1413.4,1413.3,0.05029494]
[1673583235056,31.33035311,1413.4,1413.3,0.05029494]
[1673583235455,33.27385365,1413.4,1413.3,0.05029494]
[1673583235785,24.25522311,1413.4,1413.3,0.05029494]
[1673583236526,31.33035311,1413.4,1413.3,0.05029494]
[1673583237052,39.41234653,1413.4,1413.3,0.05029494]
[1673583237211,41.34939955,1413.4,1413.3,0.05029494]
[1673583237679,42.93497353,1413.4,1413.3,0.05029494]
[1673583239123,41.87502396,1413.4,1413.3,0.05029494]
[1673583243743,43.99463686,1413.4,1413.3,0.05029494]
[1673583244605,42.93509871,1413.4,1413.3,0.05029494]
[1673583245780,41.87502396,1413.4,1413.3,0.05029494]
[1673583245943,42.93508616,1413.4,1413.3,0.05029494]
[1673583246375,42.93512058,1413.4,1413.3,0.05029494]
[1673583246591,41.87502396,1413.4,1413.3,0.05029494]
[1673583249630,43.99463686,1413.4,1413.3,0.05029494]
[1673583256796,42.40906288,1413.4,1413.3,0.05029494]
[1673583257045,43.99944499,1413.4,1413.3,0.05029494]
[1673583258058,42.40906288,1413.4,1413.3,0.05029494]
[1673583258310,45.06014875,1413.4,1413.3,0.05029494]
[1673583258477,42.40906288,1413.4,1413.3,0.05029494]
[1673583258692,45.06014875,1413.4,1413.3,0.05029494]
[1673583259582,42.40906288,1413.4,1413.3,0.05029494]
[1673583260158,51.0044808,1413.4,1413.3,0.05029494]
[1673583260368,51.00450549,1413.4,1413.3,0.05029494]
[1673583261075,48.88489259,1413.4,1413.3,0.04706462]
[1673583262367,51.00534436,1413.4,1413.3,0.04706462]
[1673583262782,48.88489259,1413.4,1413.3,0.04706462]
[1673583263234,51.00559036,1413.4,1413.3,0.04706462]
[1673583264186,48.88489259,1413.4,1413.3,0.04706462]
[1673583264366,51.00559445,1413.4,1413.3,0.04706462]
[1673583265417,50.39089259,1413.4,1413.3,0.04706462]
[1673583265852,62.04339259,1413.4,1413.3,0.04706462]
[1673583267030,64.25816181,1413.4,1413.2,0.0736194]
[1673583267380,49.86240373,1413.3,1413.2,0.00428879]
[1673583267523,47.80806182,1413.3,1413.2,0.00428879]
[1673583267734,48.51683104,1413.3,1413.2,0.00428879]
[1673583268461,39.54156491,1413.3,1413.2,0.00428879]
[1673583268685,24.76510451,1413.3,1413.2,0.00428879]
[1673583268894,31.84073451,1413.3,1413.2,0.00428879]
[1673583270074,38.91636451,1413.3,1413.2,0.00428879]
[1673583270820,36.7967315,1413.3,1413.2,0.00428879]
[1673583271416,41.47533809,1413.3,1413.2,0.00428879]
[1673583271640,48.12907098,1413.3,1413.2,0.00428879]
[1673583271862,42.18410731,1413.3,1413.2,0.00428879]
[1673583272286,39.53356491,1413.3,1413.2,0.00428879]
[1673583272677,48.12898553,1413.3,1413.2,0.00428879]
[1673583272894,42.18410731,1413.3,1413.2,0.00428879]
[1673583276237,39.53356491,1413.3,1413.2,0.00428879]
[1673583276451,42.18060853,1413.3,1413.2,0.00428879]
[1673583276916,41.47183931,1413.3,1413.2,0.00428879]
[1673583277464,42.18060853,1413.3,1413.2,0.00428879]
[1673583277675,46.00596877,1413.3,1413.2,0.00428879]
[1673583278357,48.12474114,1413.3,1413.2,0.00428879]
[1673583278783,46.00596877,1413.3,1413.2,0.00428879]
[1673583279040,48.12488252,1413.3,1413.2,0.00428879]
[1673583279621,48.1248819,1413.3,1413.2,0.00428879]
[1673583279909,46.00596877,1413.3,1413.2,0.00428879]
[1673583282083,48.12465582,1413.3,1413.2,0.00428879]
[1673583282292,48.12452587,1413.3,1413.2,0.00428879]
[1673583282487,46.00596877,1413.3,1413.2,0.00428879]
[1673583283139,48.1245634,1413.3,1413.2,0.00428879]
[1673583283659,37.80102775,1413.3,1413.2,0.00428879]
[1673583283873,31.37521157,1413.3,1413.2,0.00428879]
[1673583284041,32.96407155,1413.3,1413.2,0.00428879]
[1673583285073,33.19407155,1413.3,1413.2,0.00428879]
[1673583287604,31.60521157,1413.3,1413.2,0.00428879]
[1673583289241,30.89644235,1413.3,1413.2,0.00428879]